bitfinex-derivatives/quotes_ETHF0:USTF0_20230106
["timestamp","ask_amount","ask_price","bid_price","bid_amount"]
[1672996082671,2.99828963,1247.7,1247.6,1.80221965]
[1672996083408,6.20608963,1247.7,1247.6,1.80221965]
[1672996084562,2.99828963,1247.7,1247.6,1.80221965]
[1672996084775,6.20608963,1247.7,1247.6,1.80221965]
[1672996085929,6.20608963,1247.7,1247.6,4.20611985]
[1672996086769,6.20608963,1247.7,1247.6,1.80221965]
[1672996089707,2.99828963,1247.7,1247.6,1.80221965]
[1672996090025,6.20608963,1247.7,1247.6,1.80221965]
[1672996090343,2.99828963,1247.7,1247.6,1.80221965]
[1672996090652,6.20608963,1247.7,1247.6,1.80221965]
[1672996091379,3.2078,1247.7,1247.5,4.20611985]
[1672996091703,2.99846356,1247.6,1247.5,2.4039002]
[1672996092862,2.99846356,1247.6,1247.5,4.20664491]
[1672996093494,2.99846356,1247.6,1247.5,1.80274471]
[1672996094130,2.99846356,1247.6,1247.5,4.20664491]
[1672996095072,6.20626356,1247.6,1247.5,1.80274471]
[1672996095601,6.20626356,1247.6,1247.5,4.20664491]
[1672996096018,6.20626356,1247.6,1247.5,4.20670679]
[1672996096230,6.20626356,1247.6,1247.5,4.20670648]
[1672996097281,6.20626356,1247.6,1247.5,1.80280628]
[1672996098338,6.20626356,1247.6,1247.5,4.20670648]
[1672996099176,6.20626356,1247.6,1247.5,4.20663662]
[1672996099589,6.20626356,1247.6,1247.5,1.80273642]
[1672996101698,6.20626356,1247.6,1247.5,4.20663662]
[1672996102537,6.20626356,1247.6,1247.5,1.80273642]
[1672996104223,2.99846356,1247.6,1247.5,1.80273642]
[1672996104540,6.20626356,1247.6,1247.5,1.80273642]
[1672996108843,2.99846356,1247.6,1247.5,1.80273642]
[1672996109058,6.20626356,1247.6,1247.5,1.80273642]
[1672996109903,2.99846356,1247.6,1247.5,1.80273642]
[1672996110113,6.20626356,1247.6,1247.5,1.80273642]
[1672996110534,2.99846356,1247.6,1247.5,1.80273642]
[1672996110847,6.20626356,1247.6,1247.5,1.80273642]
[1672996114944,2.99846356,1247.6,1247.5,1.80273642]
[1672996115155,6.20626356,1247.6,1247.5,1.80273642]
[1672996115775,3.2078,1247.6,1247.5,1.80273642]
[1672996115986,11.2158,1247.6,1247.5,3.00457977]
[1672996116204,11.2158,1247.6,1247.4,1.80242937]
[1672996116419,2.99697135,1247.5,1247.4,1.80242937]
[1672996119151,6.20477135,1247.5,1247.4,1.80242937]
[1672996124619,2.99697135,1247.5,1247.4,1.80242937]
[1672996124827,6.20477135,1247.5,1247.4,1.80242937]
[1672996126190,2.99697135,1247.5,1247.4,1.80242937]
[1672996126402,6.20477135,1247.5,1247.4,1.80242937]
[1672996130923,2.99697135,1247.5,1247.4,1.80242937]
[1672996131240,6.20477135,1247.5,1247.4,1.80242937]
[1672996131442,6.20477135,1247.5,1247.4,4.20566853]
[1672996132494,2.99697135,1247.5,1247.4,4.20566853]
[1672996132812,6.20477135,1247.5,1247.4,4.20566853]
[1672996133016,6.20477135,1247.5,1247.4,1.79871602]
[1672996133235,3.2078,1247.5,1247.4,1.79871602]
[1672996133448,6.20508069,1247.5,1247.4,1.79871602]
[1672996134183,6.20507507,1247.5,1247.3,2.40323916]
[1672996134918,2.99727507,1247.4,1247.3,2.40323916]
[1672996135444,6.20507507,1247.4,1247.3,2.40323916]
[1672996136918,3.2078,1247.4,1247.3,2.40323916]
[1672996137118,6.20507507,1247.4,1247.3,2.40323916]
[1672996137750,3.2078,1247.4,1247.3,2.40323916]
[1672996138911,11.00527507,1247.5,1247.3,2.40323916]
[1672996139227,3.2078,1247.4,1247.3,2.40323916]
[1672996139748,11.00527507,1247.5,1247.3,2.40323916]
[1672996139963,3.2078,1247.4,1247.3,2.40323916]
[1672996140591,11.00527507,1247.5,1247.3,2.40323916]
[1672996140795,6.20507507,1247.4,1247.3,2.40323916]
[1672996141008,3.2078,1247.4,1247.3,2.40323916]
[1672996141319,6.20507507,1247.4,1247.2,2.40323916]
[1672996141527,6.20507507,1247.4,1247.2,3.8243892]
[1672996141736,6.20507507,1247.4,1247.2,2.40323916]
[1672996143642,3.2078,1247.3,1247.2,2.40323916]
[1672996145321,3.2078,1247.3,1247.1,5.40781893]
[1672996145532,3.2078,1247.3,1247.1,6.82904314]
[1672996147628,3.2078,1247.3,1247.1,3.82446337]
[1672996147839,3.2078,1247.3,1247.1,6.82904172]
[1672996148161,2.99727507,1247.4,1247.1,6.82904172]
[1672996148373,3.2078,1247.3,1247.1,6.82904172]
[1672996149318,3.2078,1247.3,1247.1,2.40323916]
[1672996149525,3.2078,1247.3,1247.1,3.82446481]
[1672996149839,3.2078,1247.3,1247.1,6.82904458]
[1672996150051,3.2078,1247.3,1247.1,2.40323916]
[1672996150577,6.20507507,1247.3,1247.1,2.40323916]
[1672996151001,3.2078,1247.3,1247.1,2.40323916]
[1672996152470,2.99727507,1247.4,1247.1,2.40323916]
[1672996152471,3.2078,1247.2,1247.1,2.40323916]
[1672996152995,2.99727507,1247.4,1247.1,2.40323916]
[1672996153207,3.2078,1247.2,1247.1,2.40323916]
[1672996160144,11.00527507,1247.4,1247.1,2.40323916]
[1672996160878,3.2078,1247.2,1247.1,2.40323916]
[1672996161300,11.00527507,1247.4,1247.1,2.40323916]
[1672996161721,3.2078,1247.2,1247.1,2.40323916]
[1672996162132,11.00527507,1247.4,1247.1,2.40323916]
[1672996162346,3.2078,1247.2,1247.1,2.40323916]
[1672996162771,11.00527507,1247.4,1247.1,2.40323916]
[1672996163089,3.2078,1247.2,1247.1,2.40323916]
[1672996165197,11.00527507,1247.4,1247.1,2.40323916]
[1672996165408,3.2078,1247.2,1247.1,2.40323916]
[1672996165932,3.2078,1247.2,1247.1,5.40781893]
[1672996166771,3.2078,1247.2,1247.1,3.82447168]
[1672996166981,3.2078,1247.2,1247.1,2.40323916]
[1672996167193,3.2078,1247.2,1247.1,5.40781893]
[1672996167405,3.2078,1247.3,1247.1,5.40781893]
[1672996167818,3.2078,1247.3,1247.1,2.40323916]
[1672996168138,3.2078,1247.2,1247.1,2.40323916]
[1672996174544,11.00527507,1247.3,1247.1,2.40323916]
[1672996174765,3.2078,1247.2,1247.1,2.40323916]
[1672996175073,11.00527507,1247.3,1247.1,2.40323916]
[1672996175287,3.2078,1247.2,1247.1,2.40323916]
[1672996176967,3.2078,1247.2,1247.1,5.40781893]
[1672996177180,11.00527507,1247.3,1247.1,5.40781893]
[1672996177492,3.2078,1247.2,1247.1,5.40781893]
[1672996178229,11.00527507,1247.3,1247.1,5.40781893]
[1672996178429,3.2078,1247.2,1247.1,5.40781893]
[1672996179069,3.2078,1247.2,1247.1,4.42579444]
[1672996179275,3.2078,1247.2,1247.1,3.00457977]
[1672996180013,3.2078,1247.2,1247.1,5.40965427]
[1672996180224,3.2078,1247.2,1247.1,4.42579444]
[1672996180439,3.2078,1247.2,1247.1,3.00457977]
[1672996181800,11.00527507,1247.3,1247.1,3.00457977]
[1672996182010,3.2078,1247.2,1247.1,3.00457977]
[1672996182209,11.00527507,1247.3,1247.1,3.00457977]
[1672996182423,11.00527507,1247.3,1247.2,2.40506517]
[1672996182850,11.2158,1247.3,1247.1,2.40506517]
[1672996183165,2.9989935,1247.2,1247.1,2.40506517]
[1672996183784,6.2067935,1247.2,1247.1,2.40506517]
[1672996183999,6.2067935,1247.2,1247.1,5.40964494]
[1672996184631,3.2078,1247.2,1247.1,5.40964494]
[1672996184955,3.2078,1247.2,1247.1,4.42579444]
[1672996185366,3.2078,1247.2,1247.1,3.00457977]
[1672996186000,11.0069935,1247.3,1247.1,3.00457977]
[1672996186215,3.2078,1247.2,1247.1,3.00457977]
[1672996187260,11.0069935,1247.3,1247.1,3.00457977]
[1672996187472,11.0069935,1247.3,1247.2,2.4052897]
[1672996187788,14.2147935,1247.3,1247.2,2.4052897]
[1672996188734,11.0069935,1247.3,1247.2,2.4052897]
[1672996188949,14.2147935,1247.3,1247.2,2.4052897]
[1672996189261,11.0069935,1247.3,1247.2,2.4052897]
[1672996189881,14.2147935,1247.3,1247.2,2.4052897]
[1672996190096,11.0069935,1247.3,1247.2,2.4052897]
[1672996190412,11.2158,1247.3,1247.1,5.40986947]
[1672996190616,14.21508983,1247.3,1247.1,3.00457977]
[1672996190829,14.21508983,1247.3,1247.2,2.40542649]
[1672996191049,11.2158,1247.3,1247.1,5.41000626]
[1672996191258,2.99921721,1247.2,1247.1,5.41000626]
[1672996192100,6.20701721,1247.2,1247.1,5.41000626]
[1672996194827,6.20701721,1247.2,1247.1,2.40542649]
[1672996195880,2.99921721,1247.2,1247.1,2.40542649]
[1672996196195,6.20701721,1247.2,1247.1,2.40542649]
[1672996197879,6.203208,1247.2,1247.1,2.40542649]
[1672996198612,6.203208,1247.2,1247.1,5.41000626]
[1672996199253,2.995408,1247.2,1247.1,5.41000626]
[1672996199780,6.203208,1247.2,1247.1,5.41000626]
[1672996200619,6.203208,1247.2,1247.1,3.82670963]
[1672996200830,6.203208,1247.2,1247.1,2.40542649]
[1672996201253,6.203208,1247.2,1247.1,4.20946482]
[1672996201566,6.203208,1247.2,1247.1,2.40542649]
[1672996201982,6.203208,1247.2,1247.1,4.20947664]
[1672996202196,6.203208,1247.2,1247.1,2.40542649]
[1672996202510,6.203208,1247.2,1247.1,4.20918789]
[1672996202822,6.203208,1247.2,1247.1,2.40542649]
[1672996203972,6.203208,1247.2,1247.1,4.20901687]
[1672996204710,6.203208,1247.2,1247.1,2.40542649]
[1672996205350,6.203208,1247.2,1247.1,4.20901571]
[1672996205660,3.2078,1247.2,1247.1,1.80358922]
[1672996205872,3.2078,1247.2,1247.1,4.20901571]
[1672996209759,8.008,1247.3,1247.1,4.20901571]
[1672996209973,3.2078,1247.2,1247.1,4.20901571]
[1672996211550,3.2078,1247.2,1247.1,1.80358922]
[1672996211766,11.60744924,1247.3,1247.1,1.80358922]
[1672996211973,11.60744924,1247.3,1247.2,1.20219571]
[1672996212183,14.81524924,1247.3,1247.2,1.20219571]
[1672996212393,11.60744924,1247.3,1247.2,1.20219571]
[1672996212607,14.81524924,1247.3,1247.2,1.20219571]
[1672996212917,11.60744924,1247.3,1247.2,1.20219571]
[1672996213128,14.81524924,1247.3,1247.2,1.20219571]
[1672996213757,11.60744924,1247.3,1247.2,1.20219571]
[1672996213966,14.81524924,1247.3,1247.2,1.20219571]
[1672996214179,11.60744924,1247.3,1247.2,1.20219571]
[1672996214386,14.81524924,1247.3,1247.2,1.20219571]
[1672996214600,11.60744924,1247.3,1247.2,1.20219571]
[1672996214919,14.81524924,1247.3,1247.2,1.20219571]
[1672996215549,11.60744924,1247.3,1247.2,1.20219571]
[1672996215864,11.2158,1247.3,1247.2,1.20219571]
[1672996219431,14.81524924,1247.3,1247.2,1.20219571]
[1672996219963,11.60744924,1247.3,1247.2,1.20219571]
[1672996220174,11.2158,1247.3,1247.2,1.20219571]
[1672996221330,14.81524924,1247.3,1247.2,1.20219571]
[1672996221762,11.60744924,1247.3,1247.2,1.20219571]
[1672996221962,14.81524924,1247.3,1247.2,1.20219571]
[1672996222489,11.2158,1247.3,1247.2,1.20219571]
[1672996223016,14.81524924,1247.3,1247.2,1.20219571]
[1672996223648,11.60744924,1247.3,1247.2,1.20219571]
[1672996223961,14.81524924,1247.3,1247.2,1.20219571]
[1672996224169,14.81524924,1247.3,1247.1,3.00578493]
[1672996224382,11.00571759,1247.2,1247.1,3.00578493]
[1672996225215,8.008,1247.2,1247.1,3.00578493]
[1672996225643,11.00576619,1247.2,1247.1,3.00578493]
[1672996226696,8.008,1247.2,1247.1,3.00578493]
[1672996228167,11.00563757,1247.2,1247.1,3.00578493]
[1672996228375,11.60744924,1247.2,1247.0,1.80347449]
[1672996228575,8.008,1247.0,1246.9,1.80338956]
[1672996228791,11.00520081,1247.0,1246.9,1.80338956]
[1672996229523,11.00520081,1247.0,1246.9,4.20881605]
[1672996229846,11.00520081,1247.0,1246.9,1.80338956]
[1672996230372,8.008,1247.0,1246.8,12.57679247]
[1672996230579,14.21174565,1246.9,1246.8,12.57679247]
[1672996230790,11.2158,1246.9,1246.8,13.1788294]
[1672996231636,11.2158,1246.9,1246.8,14.60049013]
[1672996231946,11.2158,1246.9,1246.8,13.1788294]
[1672996232690,3.2078,1246.9,1246.8,14.60042612]
[1672996233206,3.2078,1246.9,1246.8,17.60500589]
[1672996233733,3.2078,1246.9,1246.8,14.60042612]
[1672996233946,3.2078,1246.9,1246.8,17.60500589]
[1672996234996,3.2078,1246.9,1246.8,15.1995794]
[1672996236889,3.2078,1246.9,1246.8,14.59728516]
[1672996237406,14.21174565,1247.1,1246.8,15.1995794]
[1672996237728,14.21174565,1247.1,1247.0,4.20374955]
[1672996237729,3.2078,1247.1,1247.0,4.20374955]
[1672996237935,3.2078,1247.1,1247.0,1.80160695]
[1672996238777,6.20374565,1247.1,1247.0,1.80160695]
[1672996239200,3.2078,1247.1,1247.0,1.80160695]
[1672996240774,11.00394565,1247.2,1247.0,1.80160695]
[1672996240987,3.2078,1247.1,1247.0,1.80160695]
[1672996243616,6.20374565,1247.1,1247.0,1.80160695]
[1672996243828,3.2078,1247.1,1247.0,1.80160695]
[1672996245612,11.00394565,1247.2,1247.0,1.80160695]
[1672996245822,3.2078,1247.1,1247.0,1.80160695]
[1672996247714,6.20374565,1247.1,1247.0,1.80160695]
[1672996256952,6.20374565,1247.1,1247.0,1.79715938]
[1672996262319,3.2078,1247.1,1246.8,16.18012528]
[1672996262532,3.2078,1246.9,1246.8,16.18012528]
[1672996262742,3.2078,1246.9,1246.8,17.60171696]
[1672996263471,3.2078,1246.9,1246.8,15.19957436]
[1672996263892,3.2078,1246.9,1246.8,17.60356616]
[1672996264418,3.2078,1246.9,1246.8,15.19957436]
[1672996264627,3.2078,1246.9,1246.8,17.60355231]
[1672996265369,3.2078,1246.9,1246.8,14.59897254]
[1672996265884,3.2078,1246.9,1246.8,13.17738086]
[1672996266101,6.20469926,1246.9,1246.8,13.17738086]
[1672996266312,11.2158,1246.9,1246.8,9.30327533]
[1672996266627,14.81112261,1246.9,1246.8,9.30327533]
[1672996267042,15.41066649,1246.9,1246.8,9.30327533]
[1672996267253,19.00064838,1246.9,1246.8,9.30327533]
[1672996267785,14.80578189,1246.9,1246.8,9.30327533]
[1672996269558,14.80578189,1246.9,1246.8,2.57267533]
[1672996269775,15.41066649,1246.9,1246.8,2.57267533]
[1672996269986,18.99723675,1246.9,1246.8,2.57267533]
[1672996270207,15.41066649,1246.9,1246.8,2.57267533]
[1672996270623,18.99727427,1246.9,1246.8,2.57267533]
[1672996271259,14.80240778,1246.9,1246.8,2.57267533]
[1672996272096,11.2158,1246.9,1246.3,5.0]
[1672996272305,11.2158,1246.4,1246.3,5.0]
[1672996274099,11.2158,1246.4,1246.1,11.70787795]
[1672996274306,3.2078,1246.2,1246.1,5.0]
[1672996274513,3.2078,1246.2,1246.0,20.16737795]
[1672996274724,3.2078,1246.2,1246.0,6.58537795]
[1672996276406,3.2078,1246.2,1246.0,3.58537795]
[1672996277771,3.2078,1246.2,1246.0,1.1814]
[1672996278722,3.2078,1246.2,1245.9,13.40855772]
[1672996279247,3.2078,1246.2,1245.9,10.40397795]
[1672996283551,3.2078,1246.4,1246.2,0.31605011]
[1672996284082,11.2158,1246.4,1246.2,0.31605011]
[1672996287024,3.2078,1246.4,1246.2,0.31605011]
[1672996292176,3.2078,1246.7,1246.2,13.93582806]
[1672996292596,11.2158,1246.9,1246.4,3.2078]
[1672996292801,3.2078,1246.9,1246.4,11.2158]
[1672996293012,3.2078,1247.1,1246.6,3.2078]
[1672996293329,11.2158,1247.1,1246.6,3.2078]
[1672996294276,3.2078,1247.1,1246.6,11.2158]
[1672996294692,3.2078,1247.1,1246.7,1.1814]
[1672996296791,3.2078,1246.9,1246.6,3.2078]
[1672996303203,8.008,1247.1,1246.5,18.41655772]
[1672996303412,3.2078,1247.0,1246.6,3.2078]
[1672996305196,3.2078,1247.0,1246.6,5.61177795]
[1672996306249,3.2078,1247.0,1246.6,3.2078]
[1672996306464,8.008,1246.9,1246.6,3.2078]
[1672996306982,3.2078,1247.0,1246.6,3.2078]
[1672996307407,11.2158,1247.0,1246.6,3.2078]
[1672996317077,11.2158,1247.0,1246.6,5.00318744]
[1672996319074,3.2078,1247.0,1246.6,7.40716539]
[1672996319594,3.2078,1247.0,1246.7,1.79538744]
[1672996320549,3.2078,1247.0,1246.6,7.40716539]
[1672996320759,3.2078,1247.0,1246.7,1.79538744]
[1672996321070,3.2078,1247.0,1246.6,7.40716539]
[1672996321489,3.2078,1247.0,1246.6,5.00318744]
[1672996321699,3.2078,1247.0,1246.6,7.40716539]
[1672996321914,3.2078,1247.0,1246.6,5.00318744]
[1672996324120,6.19375303,1247.0,1246.6,5.00318744]
[1672996324333,3.2078,1247.0,1246.6,7.40716539]
[1672996324543,3.2078,1247.0,1246.7,1.79538744]
[1672996325066,3.2078,1247.0,1246.6,7.40716539]
[1672996325278,6.19375303,1247.0,1246.7,1.79538744]
[1672996329154,6.19375303,1247.0,1246.7,4.19936539]
[1672996329578,2.98595303,1247.0,1246.7,4.19936539]
[1672996329789,3.2078,1246.9,1246.7,4.19936539]
[1672996330214,2.98595303,1247.0,1246.8,1.79538744]
[1672996331260,3.2078,1247.0,1246.9,1.79538744]
[1672996331575,3.2078,1247.0,1246.8,4.19936539]
[1672996331779,3.2078,1247.0,1246.9,1.79538744]
[1672996333474,3.2078,1247.0,1246.8,4.19936539]
[1672996333679,2.9972113,1246.9,1246.8,4.19936539]
[1672996333881,2.9972113,1246.9,1246.8,1.79538744]
[1672996335042,6.79094364,1247.0,1246.8,1.79538744]
[1672996335361,2.99722392,1246.9,1246.8,2.40397795]
[1672996335571,2.99722392,1246.9,1246.8,4.20818167]
[1672996335786,2.99722392,1246.9,1246.8,1.80420372]
[1672996336730,2.99722392,1246.9,1246.8,4.20818167]
[1672996337362,2.99722392,1246.9,1246.8,1.80420372]
[1672996338201,2.99722392,1246.9,1246.8,4.20818167]
[1672996338932,2.99722392,1246.9,1246.8,1.80420372]
[1672996339354,10.98581013,1247.0,1246.8,1.80420372]
[1672996339985,6.79094364,1247.0,1246.8,1.80420372]
[1672996340196,10.98581013,1247.0,1246.8,1.80420372]
[1672996341565,7.77801013,1247.0,1246.8,1.80420372]
[1672996341767,3.2078,1246.9,1246.8,1.80420372]
[1672996342088,3.2078,1246.9,1246.7,3.82570951]
[1672996342303,2.99680807,1246.8,1246.7,5.62972283]
[1672996343449,2.99680807,1246.8,1246.7,3.82570951]
[1672996343661,2.99680807,1246.8,1246.7,5.62966982]
[1672996345979,2.99680807,1246.8,1246.7,3.82570951]
[1672996346290,2.99680807,1246.8,1246.7,5.24748052]
[1672996347030,2.99680807,1246.8,1246.7,3.82570951]
[1672996347664,2.99680807,1246.8,1246.7,5.24748486]
[1672996347873,2.99680807,1246.8,1246.7,5.62957212]
[1672996349233,2.99680807,1246.8,1246.7,7.05134485]
[1672996349654,6.20460807,1246.9,1246.7,7.05134485]
[1672996349968,6.20460807,1246.9,1246.8,3.00617495]
[1672996351233,6.79094364,1247.1,1246.8,5.02806631]
[1672996351447,2.99687894,1247.0,1246.9,4.20808526]
[1672996351654,2.99687894,1247.0,1246.9,1.80346511]
[1672996353544,6.20407316,1247.1,1246.9,2.40395026]
[1672996353859,6.20407316,1247.1,1247.0,3.00495257]
[1672996354487,6.20407316,1247.1,1247.0,1.20198103]
[1672996364482,6.20407316,1247.1,1247.0,1.19515666]
[1672996368157,2.99627316,1247.1,1247.0,1.19515666]
[1672996368471,6.20407316,1247.1,1247.0,1.19515666]
[1672996369102,6.20407316,1247.1,1246.9,5.62843695]
[1672996374568,2.99627316,1247.1,1246.9,5.62843695]
[1672996374769,6.20407316,1247.1,1246.9,5.62843695]
[1672996375935,3.2078,1247.1,1247.0,1.80297154]
[1672996376564,3.2078,1247.1,1246.9,8.03165316]
[1672996378878,6.20407316,1247.2,1246.9,8.03165316]
[1672996380025,6.20407316,1247.2,1247.0,1.80297154]
[1672996380872,6.20407316,1247.2,1246.9,8.03165316]
[1672996382239,6.20407316,1247.2,1247.0,1.80297154]
[1672996382654,2.99627316,1247.1,1246.9,5.62843695]
[1672996383070,2.99627316,1247.1,1246.9,8.03165316]
[1672996383281,2.99627316,1247.1,1246.9,5.62843695]
[1672996383704,6.20407316,1247.2,1246.9,8.03165316]
[1672996383915,2.99627316,1247.1,1246.9,5.62843695]
[1672996384234,2.99627316,1247.1,1246.9,8.03165316]
[1672996384448,2.99627316,1247.1,1247.0,1.80297154]
[1672996384969,6.20407316,1247.2,1247.0,1.80297154]
[1672996388220,2.99627316,1247.1,1247.0,4.20618775]
[1672996388426,6.20407316,1247.2,1247.0,4.20618775]
[1672996388636,2.99627316,1247.1,1247.0,1.80297154]
[1672996389170,6.20407316,1247.2,1247.0,4.20618775]
[1672996389373,2.99627316,1247.1,1247.0,1.80297154]
[1672996390117,6.20407316,1247.2,1247.0,1.80297154]
[1672996390334,3.2078,1247.2,1247.0,4.20618775]
[1672996390538,2.99702749,1247.1,1247.0,4.20618775]
[1672996391600,2.99702749,1247.1,1247.0,2.40321621]
[1672996391905,2.99702749,1247.1,1247.0,3.82463516]
[1672996392534,6.20482749,1247.2,1247.0,3.82463516]
[1672996392746,6.20482749,1247.2,1247.1,1.80308548]
[1672996399990,8.008,1247.3,1247.1,2.40321621]
[1672996399991,2.99702749,1247.3,1247.1,2.40321621]
[1672996400195,2.99702749,1247.3,1247.2,1.80259193]
[1672996400623,6.20482749,1247.4,1247.2,1.80259193]
[1672996400831,2.99702749,1247.3,1247.2,1.80259193]
[1672996402414,2.99702749,1247.3,1247.1,4.20580814]
[1672996402731,2.99702749,1247.3,1247.1,1.80259193]
[1672996403879,2.99702749,1247.2,1247.1,1.80259193]
[1672996404298,6.20482749,1247.2,1247.0,4.20580814]
[1672996404624,2.99702749,1247.3,1247.1,1.80259193]
[1672996404940,2.99702749,1247.2,1247.1,1.80259193]
[1672996405780,6.20482749,1247.2,1247.1,1.80259193]
[1672996406301,3.2078,1247.2,1247.1,1.80259193]
[1672996409033,6.20482749,1247.3,1247.1,1.80259193]
[1672996409242,2.99702749,1247.3,1247.1,1.80259193]
[1672996409557,6.20482749,1247.3,1247.1,1.80259193]
[1672996411455,6.20482749,1247.3,1247.1,4.20580814]
[1672996412502,2.99702749,1247.3,1247.1,4.20580814]
[1672996413240,2.99702749,1247.3,1247.2,1.80259193]
[1672996413863,2.99702749,1247.3,1247.1,4.20580814]
[1672996414923,2.99702749,1247.3,1247.2,1.80259193]
[1672996420592,6.20482749,1247.4,1247.2,1.80259193]
[1672996421329,2.99702749,1247.3,1247.2,1.80259193]
[1672996429532,6.20482749,1247.4,1247.2,2.40321621]
[1672996429741,6.20482749,1247.4,1247.3,1.80193088]
[1672996430054,2.99702749,1247.4,1247.3,1.80193088]
[1672996430675,2.99702749,1247.4,1247.2,4.20514709]
[1672996431316,2.99702749,1247.4,1247.3,1.80193088]
[1672996431529,2.99702749,1247.4,1247.2,4.20514709]
[1672996432788,2.99702749,1247.4,1247.3,1.80193088]
[1672996440350,2.99702749,1247.4,1247.3,1.79885414]
[1672996446758,6.20482749,1247.4,1247.3,1.79885414]
[1672996447702,2.99702749,1247.4,1247.3,1.79885414]
[1672996447913,6.20482749,1247.4,1247.3,1.79885414]
[1672996448129,2.99702749,1247.4,1247.3,1.79885414]
[1672996448438,3.2078,1247.4,1247.3,1.79885414]
[1672996450014,3.58314364,1247.5,1247.3,1.79885414]
[1672996450545,3.2078,1247.4,1247.3,1.79885414]
[1672996451802,3.58314364,1247.5,1247.3,1.79885414]
[1672996452013,3.2078,1247.4,1247.3,1.79885414]
[1672996452636,3.58314364,1247.5,1247.3,1.79885414]
[1672996453059,3.2078,1247.4,1247.3,1.79885414]
[1672996455374,3.58314364,1247.5,1247.3,1.79885414]
[1672996455584,3.2078,1247.4,1247.3,1.79885414]
[1672996456209,6.79094364,1247.5,1247.3,1.79885414]
[1672996456630,3.58314364,1247.5,1247.3,1.79885414]
[1672996456845,6.79094364,1247.5,1247.3,1.79885414]
[1672996457056,3.58314364,1247.5,1247.3,1.79885414]
[1672996457266,6.79094364,1247.5,1247.3,1.79885414]
[1672996457688,3.58314364,1247.5,1247.3,1.79885414]
[1672996457898,6.79094364,1247.5,1247.3,1.79885414]
[1672996458211,3.58314364,1247.5,1247.3,1.79885414]
[1672996458415,6.79094364,1247.5,1247.3,1.79885414]
[1672996459053,3.58314364,1247.5,1247.3,1.79885414]
[1672996459467,6.79094364,1247.5,1247.3,1.79885414]
[1672996459673,3.58314364,1247.5,1247.3,1.79885414]
[1672996460415,6.79094364,1247.5,1247.3,1.79885414]
[1672996461045,3.58314364,1247.5,1247.3,1.79885414]
[1672996461359,6.79094364,1247.5,1247.3,1.79885414]
[1672996462733,3.58314364,1247.5,1247.3,1.79885414]
[1672996462945,6.79094364,1247.5,1247.3,1.79885414]
[1672996463677,3.58314364,1247.5,1247.3,1.79885414]
[1672996463891,6.79094364,1247.5,1247.3,1.79885414]
[1672996464207,3.58314364,1247.5,1247.3,1.79885414]
[1672996464414,6.79094364,1247.5,1247.3,1.79885414]
[1672996465256,3.58314364,1247.5,1247.3,1.79885414]
[1672996465670,6.79094364,1247.5,1247.3,1.79885414]
[1672996466198,3.58314364,1247.5,1247.3,1.79885414]
[1672996466409,6.79094364,1247.5,1247.3,1.79885414]
[1672996466832,3.58314364,1247.5,1247.3,1.79885414]
[1672996467041,6.79094364,1247.5,1247.3,1.79885414]
[1672996467246,3.58314364,1247.5,1247.3,1.79885414]
[1672996467456,6.79094364,1247.5,1247.3,1.79885414]
[1672996468403,3.58314364,1247.5,1247.3,1.79885414]
[1672996468615,6.79094364,1247.5,1247.3,1.79885414]
[1672996469141,3.58314364,1247.5,1247.3,1.79885414]
[1672996469457,6.79094364,1247.5,1247.3,4.20207035]
[1672996470924,3.58314364,1247.5,1247.3,4.20207035]
[1672996471242,6.79094364,1247.5,1247.3,4.20207035]
[1672996471978,3.58314364,1247.5,1247.3,4.20207035]
[1672996472189,6.79094364,1247.5,1247.3,4.20207035]
[1672996472400,3.58314364,1247.5,1247.3,4.20207035]
[1672996472717,6.79094364,1247.5,1247.3,4.20207035]
[1672996473451,3.58314364,1247.5,1247.3,4.20207035]
[1672996473875,6.79094364,1247.5,1247.3,4.20207035]
[1672996474188,3.58314364,1247.5,1247.3,4.20207035]
[1672996474401,6.79094364,1247.5,1247.3,4.20207035]
[1672996475872,3.58314364,1247.5,1247.3,4.20207035]
[1672996476083,6.79094364,1247.5,1247.3,4.20207035]
[1672996477028,3.58314364,1247.5,1247.3,4.20207035]
[1672996477240,6.79094364,1247.5,1247.3,4.20207035]
[1672996479552,3.58314364,1247.5,1247.3,4.20207035]
[1672996479755,6.79094364,1247.5,1247.3,4.20207035]
[1672996481128,3.58314364,1247.5,1247.3,4.20207035]
[1672996481655,6.79094364,1247.5,1247.3,4.20207035]
[1672996483759,2.99882316,1247.4,1247.3,4.20207035]
[1672996483971,2.99882316,1247.4,1247.3,2.40321621]
[1672996502887,2.99882316,1247.4,1247.3,4.20687131]
[1672996503103,10.98581013,1247.5,1247.3,3.00615453]
[1672996503843,10.98581013,1247.5,1247.3,1.20249943]
[1672996504054,3.58314364,1247.4,1247.3,1.20249943]
[1672996505839,10.98581013,1247.5,1247.3,1.20249943]
[1672996506365,18.99381013,1247.5,1247.3,1.20249943]
[1672996506786,3.58314364,1247.4,1247.3,1.20249943]
[1672996507630,6.79094364,1247.4,1247.3,1.20249943]
[1672996507841,3.2078,1247.4,1247.3,1.20249943]
[1672996508678,15.78601013,1247.5,1247.3,1.20249943]
[1672996509097,3.2078,1247.4,1247.3,1.20249943]
[1672996512776,6.79094364,1247.4,1247.2,3.00615453]
[1672996512987,2.99590234,1247.3,1247.2,3.00615453]
[1672996513515,6.20370234,1247.3,1247.2,3.00615453]
[1672996513929,6.20370234,1247.3,1247.2,3.00184326]
[1672996515822,6.20370234,1247.3,1247.2,1.79934383]
[1672996517077,6.20370234,1247.3,1247.2,3.00095257]
[1672996519820,2.99590234,1247.3,1247.2,3.00095257]
[1672996520030,6.20370234,1247.3,1247.2,3.00095257]
[1672996521292,6.20370234,1247.3,1247.2,1.79934383]
[1672996521607,6.20370234,1247.3,1247.2,3.00081031]
[1672996522025,6.20370234,1247.3,1247.2,1.79934383]
[1672996524236,6.20370234,1247.3,1247.2,3.00083093]
[1672996525071,2.99590234,1247.3,1247.2,3.00083093]
[1672996525386,2.99590234,1247.3,1247.2,1.79934383]
[1672996525387,6.20370234,1247.3,1247.2,1.79934383]
[1672996525909,2.99590234,1247.3,1247.2,1.79934383]
[1672996526124,6.20370234,1247.3,1247.2,1.79934383]
[1672996527382,2.99590234,1247.3,1247.2,1.79934383]
[1672996528119,6.20370234,1247.3,1247.2,1.79934383]
[1672996528329,3.2078,1247.3,1247.2,4.20256004]
[1672996529278,6.20370234,1247.4,1247.2,4.20256004]
[1672996529596,6.20370234,1247.4,1247.3,1.20149892]
[1672996530527,2.99590234,1247.4,1247.3,1.20149892]
[1672996530744,6.20370234,1247.4,1247.3,1.20149892]
[1672996531482,2.99590234,1247.4,1247.3,1.20149892]
[1672996531693,6.20370234,1247.4,1247.3,1.20149892]
[1672996534004,2.99590234,1247.4,1247.3,1.20149892]
[1672996534216,6.20370234,1247.4,1247.3,1.20149892]
[1672996535474,3.2078,1247.4,1247.3,1.20149892]